Cogmind - Beta 15 @@@ ROGUE MODE // 2025.05.12 @ 20:54:26 Player: H3-RMN Result: Destroyed by G-47 Trooper with Particle Gun Performance ------------- Evolutions (3) 1500 Regions Visited (8) 1600 Robots Destroyed (176) 880 Value Destroyed (6734) 6734 Prototype IDs (37) 740 Alien Tech Used (0) 0 Bonus (998) 998 TOTAL SCORE: 12452 Bonus ------- High Alert Combat Kills 744 Follower Combat Kills 145 Entered Garrisons 200 Friendly Fire -91 Cogmind --------- Core Integrity 0/700 Matter 300/300 Energy 300/300 System Corruption 12% Temperature Cool (9) Movement Hovering (52) Location -7/Storage Parts ------- > --- POWER (2) -------- Enhanced Nuclear Core > --- PROPULSION (4) --- Aerolev Unit Improved Airjet Combat Gravmag System > --- UTILITY (5) ------ Medium Storage Unit Improved Sensor Array Improved Signal Interpreter Core Analyzer Gun Armor > --- WEAPON (2) ------- Enhanced Autogun Impact Mace > --- INVENTORY (10) --- Aerolev Unit Huge Storage Unit Transmission Jammer Hacking Suite Hacking Suite Powered Cannon Enhanced Autogun Improved Grenade Launcher Multitool Peak State ------------ > --- POWER ------------ Reinforced Deuterium Engine > --- PROPULSION ------- Aerolev Unit Combat Airjet Combat Gravmag System Combat Gravmag System > --- UTILITY ---------- Huge Storage Unit Improved Signal Interpreter Core Analyzer Gun Armor Graphene Brace > --- WEAPON ----------- Enhanced Autogun Enhanced Autogun > --- INVENTORY -------- Armored Treads Aerolev Unit Aerolev Unit Aerolev Unit Aerolev Unit Improved VTOL Module Cooled VTOL Module Cooled VTOL Module Improved Heat Sink Improved Sensor Array Weapon Cycler Transmission Jammer Improved Light Armor Plating Shield Generator Hacking Suite Hacking Suite Hacking Suite Improved Trap Extractor Improved EM Pulse Cannon Powered Cannon Mini Grenade Launcher Improved Grenade Launcher Multitool [Rating: 66] Favorites ----------- Power Deuterium Engine Engine Deuterium Engine Power Core Light Nuclear Core Propulsion Light Treads Treads Light Treads Leg Improved Aluminum Leg Wheel Wheel Hover Unit Combat Gravmag System Utility Gun Armor Device Improved Heat Sink Storage Huge Storage Unit Processor Advanced Targeting Computer Protection Gun Armor Weapon Subdweller Machine Gun Energy Gun Autobeam Energy Cannon Subdweller Beam Cannon Ballistic Gun Subdweller Machine Gun Ballistic Cannon Heavy Assault Cannon Launcher Rocket Launcher Special Weapon Mining Laser Impact Weapon Impact Mace Special Melee Weapon Improved Datajack Build | -11 -10 -10 -10 -8 -8 -8 -7 -7 ------- Run | Yrd Mat Min Sub Mat Gar Mat Fac Sto Slots Evolved 6 | . . . . 4 . . 2 . Power 1 | . . . . . . . 1 . Propulsion 2 | . . . . 2 . . . . Utility 3 | . . . . 2 . . 1 . Weapon . | . . . . . . . . . Parts Attached 135 | 8 1 8 28 23 7 24 33 3 Power 18 | 1 . 1 5 2 . 3 5 1 Engine 13 | 1 . 1 5 2 . 1 3 . Core 5 | . . . . . . 2 2 1 Reactor . | . . . . . . . . . Propulsion 47 | 2 . 2 9 10 3 8 12 1 Treads 18 | . . 2 1 7 3 3 2 . Leg 1 | . . . . . . 1 . . Wheel 19 | 2 . . 8 2 . 4 3 . Hover 9 | . . . . 1 . . 7 1 Flight . | . . . . . . . . . Utility 33 | 2 . 1 5 5 2 5 13 . Device 15 | 1 . . 2 2 2 1 7 . Storage 7 | 1 . . 1 3 . . 2 . Processor 4 | . . . . . . 1 3 . Hackware . | . . . . . . . . . Protection 7 | . . 1 2 . . 3 1 . Artifact . | . . . . . . . . . Weapon 37 | 3 1 4 9 6 2 8 3 1 Energy Gun 12 | 2 . 2 4 2 . 2 . . Energy Cannon 4 | . . . 2 . . 1 1 . Ballistic Gun 13 | 1 . . 3 2 2 3 2 . Ballistic Cannon 2 | . 1 . . 1 . . . . Launcher 2 | . . 1 . . . 1 . . Special Weapon 2 | . . 1 . . . 1 . . Impact Weapon 1 | . . . . . . . . 1 Slashing Weapon . | . . . . . . . . . Piercing Weapon . | . . . . . . . . . Special Melee Weapon 1 | . . . . 1 . . . . Unidentified Prototypes 9 | . . . . 4 . 2 . 3 Corrupted Parts 1 | . . . . . . 1 . . System Corruption 3 | . . . . . . 3 . . Parts Lost 39 | . . . 6 1 2 9 20 1 Power 7 | . . . . . . 2 5 . Propulsion 15 | . . . 4 . . 3 7 1 Utility 7 | . . . 1 1 . 1 4 . Weapon 10 | . . . 1 . 2 3 4 . Highest Loss Streak 7 | . . . 1 1 1 7 6 1 To Critical Strikes . | . . . . . . . . . Average Backups 15 | 3 7 5 8 15 22 22 21 8 Power . | . 1 . . . 1 . . . Propulsion 3 | 1 3 1 1 2 4 4 6 1 Utility 4 | . . . . 3 7 8 7 4 Weapon 6 | . 3 3 4 7 8 8 6 2 Tool/Special . | . . . . . . . . . Unused Backups 38 | . . 2 2 9 1 4 15 5 Power 1 | . . . . 1 . . . . Propulsion 16 | . . 1 1 . 1 2 10 1 Utility 10 | . . . . 2 . 2 4 2 Weapon 10 | . . 1 1 5 . . 1 2 Tool/Special 1 | . . . . 1 . . . . Average Slot Usage (%) 93 | . 100 91 90 91 97 98 91 90 Engine 9 | . 14 14 13 6 7 5 7 . Core 1 | . . . . . . 3 3 5 Treads 19 | . . 19 16 24 30 22 7 . Wheel 6 | . 28 8 8 4 . 9 7 . Hover 2 | . . . . . . . 13 29 Device 8 | . 14 5 4 10 15 5 8 7 Storage 7 | . 14 5 7 7 7 8 7 7 Processor 2 | . . . . . . 7 6 15 Protection 8 | . . 8 7 9 7 11 11 7 Energy Gun 7 | . 14 15 11 8 4 2 . . Energy Cannon 3 | . . . 9 1 . . 2 . Ballistic Gun 11 | . 2 . 8 9 18 19 11 8 Ballistic Cannon 1 | . 11 5 . 4 2 . . . Peak Build Rating 66 | 7 7 16 28 45 45 48 66 58 Average Rating 34 | 5 7 12 16 40 44 44 54 56 On Entrance 26 | . 7 7 16 28 45 44 42 51 Naked Turns . | . . . . . . . . . Heaviest Build 137 | 14 16 25 50 116 120 114 137 29 Greatest Support 80 | 26 26 40 40 80 80 80 49 45 Greatest Overweight (x) 10 | . . 2 3 3 1 10 8 . Average Overweight (x) 1 | . . . . . 1 5 2 . Largest Inventory Capacity 25 | 8 8 8 15 25 25 25 25 10 Average Capacity 17 | 7 8 6 11 17 25 25 23 10 Most Carried 25 | 6 8 8 15 25 25 25 25 10 Average Carried 16 | 3 7 5 9 16 24 24 22 9 Final Capacity 25 | 8 8 5 15 25 25 25 10 10 Final Carried 25 | 6 8 4 15 25 25 25 9 10 Class Distribution -------------------- 34% | Mutant 28% | Scavenger-Mutant 13% | Scavenger-Skirmisher 11% | Scavenger-Tank 4% | Subdweller-Tank 3% | Scavenger-Gunner 3% | Subdweller-Mutant Dominant Class ---------------- Mutant | -10/Materials Mutant | -10/Mines Mutant | -10/Subcaves Scavenger-Skirmisher | -8/Materials Scavenger-Tank | -8/Garrison Scavenger-Mutant | -8/Materials Scavenger-Mutant | -7/Factory Mutant | -7/Storage Resources | -11 -10 -10 -10 -8 -8 -8 -7 -7 ----------- Run | Yrd Mat Min Sub Mat Gar Mat Fac Sto Matter Collected 5645 | 288 70 233 521 710 866 1153 1728 76 Remotely . | . . . . . . . . . Salvage Created 7066 | 129 77 215 687 1117 796 1683 2141 221 Parts 376 | 7 3 4 52 63 36 104 102 5 Haulers Intercepted 12 | . . . . 6 . 5 1 . Recyclers Shooed 5 | . . . . . . 1 4 . Parts Field Recycled . | . . . . . . . . . Retrieved Matter . | . . . . . . . . . Parts Self-Destructed 16 | . . . 16 . . . . . Prevented . | . . . . . . . . . Kills | -11 -10 -10 -10 -8 -8 -8 -7 -7 ------- Run | Yrd Mat Min Sub Mat Gar Mat Fac Sto Combat Hostiles Destroyed 136 | . 2 15 21 17 27 23 27 4 Melee 1 | . . . . . . . . 1 Guns 82 | . 1 3 10 14 13 20 21 . Cannons 24 | . 1 2 6 3 9 . 3 . AOE 24 | . . 10 5 . 5 3 1 . Classes Destroyed 22 | 2 2 2 4 5 1 4 2 . Worker 13 | . . . . 2 . 6 5 . Builder 5 | . . . . . . 5 . . Tunneler 2 | 2 . . . . . . . . Hauler 12 | . . . . 6 . 5 1 . Recycler 10 | 1 . 1 . . . 2 6 . Mechanic 2 | . . . . 1 . 1 . . Operator 1 | . . . . . . 1 . . Turret 2 | . . . 2 . . . . . Watcher 5 | . 1 . . 1 . 1 2 . Swarmer 14 | . . . 3 . 6 5 . . Grunt 59 | . 2 2 1 8 18 11 14 3 Brawler 2 | . . . . . . . 2 . Duelist 5 | . . . . 1 . 2 1 1 Protector 1 | . . . . . . 1 . . Sentry 19 | . . . . 8 2 3 6 . Demolisher 1 | . . 1 . . . . . . Hunter 1 | . . . . . 1 . . . Programmer 4 | . . . . . . . 4 . Heavy 1 | . . . . . . 1 . . Artisan 1 | . . . 1 . . . . . Subdweller 17 | . . . 17 . . . . . Assembled 12 | . . 12 . . . . . . Best Kill Streak 9 | 3 1 6 3 8 9 6 8 4 Combat Bots Only 9 | . 1 6 3 7 9 6 8 4 Max Kills in Single Turn 3 | 1 1 3 2 2 2 3 1 1 Gunslinging . | . . . . . . . . . Exploded 3 | . . 3 2 . 2 2 1 . Melee 1 | . . . . . . . . 1 Uniques/NPCs Destroyed . | . . . . . . . . . Combat | -11 -10 -10 -10 -8 -8 -8 -7 -7 -------- Run | Yrd Mat Min Sub Mat Gar Mat Fac Sto Hostile Shots Fired 1005 | . 13 21 114 68 166 116 485 22 Missed 307 | . 3 9 41 20 51 23 155 5 Hits 698 | . 10 12 73 48 115 93 330 17 Melee 29 | . . . . 2 . 11 13 3 Projectile 669 | . 10 12 73 46 115 82 317 14 AOE 7 | . . 5 2 . . . . . Critical Strikes 35 | . . 1 . 4 2 12 13 3 Actively Blocked 8 | . . . . . . . 8 . Part Disruptions 1 | . . . . . . . 1 . Damage Taken 10138 | . 118 299 1369 762 1136 2154 3981 319 Core 1272 | . 21 35 176 61 63 208 670 38 Absorbed by Shields 622 | . . . . . 440 36 146 . Regen/Repaired (Parts) 441 | . . . . 155 . 286 . . Core Remaining (%) 48 | 100 . . 7 . . 39 . . Volleys Fired 610 | 8 15 30 91 61 83 129 186 7 Largest 3 | 2 2 2 2 3 3 2 2 1 Hottest 140 | 70 80 126 140 133 80 93 94 25 Shots Fired 1132 | 16 30 41 154 136 169 242 337 7 Gun 902 | 16 15 19 103 105 123 234 280 7 Cannon 191 | . 15 5 41 31 42 3 54 . Launcher 30 | . . 13 5 . 4 5 3 . Special 9 | . . 4 5 . . . . . Kinetic 829 | 8 15 5 54 113 165 182 280 7 Thermal 212 | 8 15 23 95 23 . 3 45 . Explosive 30 | . . 13 5 . 4 5 3 . Electromagnetic 61 | . . . . . . 52 9 . Robot Hit Streak 20 | 4 14 11 20 11 9 12 15 . Robot Miss Streak 7 | 2 2 6 2 7 6 5 6 . Penetration Max 1 | . . . . . . 1 . . Secondary Targets 7 | . . . 1 2 1 2 1 . Max Gunslinging Chain 1 | . . . 1 1 1 1 1 . Autonomous 19 | . . . 6 13 . . . . Shots Hit Robots 666 | 9 23 14 88 86 87 160 193 6 Core Hits 313 | 5 4 28 37 41 47 70 79 2 Critical Kills 6 | . . . 1 2 1 1 1 . Critical Parts Destroyed 7 | . . . . . 3 2 . 2 Critical Strikes 22 | 1 . 1 2 3 8 3 2 2 Burn 2 | 1 . . 1 . . . . . Meltdown 1 | . . . . . . . 1 . Destroy 11 | . . . 1 2 4 3 1 . Blast 6 | . . 1 . 1 4 . . . Smash 2 | . . . . . . . . 2 Melee Attacks 20 | . . . . 1 . . . 19 Impact 19 | . . . . . . . . 19 Slashing . | . . . . . . . . . Piercing . | . . . . . . . . . Sneak Attacks 1 | . . . . 1 . . . . Combat Hostiles . | . . . . . . . . . Follow-up Attacks . | . . . . . . . . . Damage Inflicted 16312 | 102 350 1071 2368 2059 2839 3403 3792 328 Guns 10306 | 102 138 138 1229 1352 1347 3167 2833 . Cannons 3116 | . 212 81 581 707 820 20 695 . Explosions 2542 | . . 852 558 . 672 216 244 . Melee 328 | . . . . . . . . 328 Ramming 20 | . . . . . . . 20 . Kinetic 10071 | 26 212 81 544 1783 2167 2425 2833 . Thermal 2476 | 76 138 138 1266 276 . 20 562 . Explosive 2542 | . . 852 558 . 672 216 244 . Electromagnetic 875 | . . . . . . 742 133 . Impact 328 | . . . . . . . . 328 Slashing . | . . . . . . . . . Piercing . | . . . . . . . . . Highest Corruption 12 | . . . . 2 2 3 12 12 Average Corruption 4 | . . . . 2 2 1 9 12 Corruption Purged 2 | . . . . . . 2 . . Corruption Blocked . | . . . . . . . . . Effects 100 | . . . . 8 28 7 49 8 Message Errors 25 | . . . . 4 10 2 6 3 Matter Fused 20 | . . . . . 6 1 10 3 Heat Flow Errors 13 | . . . . . 5 1 7 . Energy Discharges 12 | . . . . 1 2 1 7 1 Parts Rejected 3 | . . . . . . . 3 . Parts Fused 2 | . . . . . 1 . 1 . Data Loss (minor) 11 | . . . . 3 1 1 5 1 Data Loss (major) 1 | . . . . . . . 1 . Misfires 4 | . . . . . 2 1 1 . Alerts 2 | . . . . . 1 . 1 . Weapon Failures 7 | . . . . . . . 7 . Overload Shots . | . . . . . . . . . Overflow Damage 416 | . . 57 42 . 123 38 23 133 Projectiles 123 | . . 5 . . 118 . . . Explosions 160 | . . 52 42 . 5 38 23 . Melee 133 | . . . . . . . . 133 Knockbacks 15 | . 6 1 . 1 4 . . 3 Impact 2 | . . . . . . . . 2 Kinetic 12 | . 6 1 . 1 4 . . . Secondary 1 | . . . . . . . . 1 Self-Inflicted Damage 186 | . . 26 33 . . 21 106 . Shots 5 | . . 1 1 . . 1 2 . Rammed 2 | . . . . . . . 2 . Targets Rammed 2 | . . . . . . . 2 . Kicked . | . . . . . . . . . Crushed . | . . . . . . . . . Highest Temperature 593 | 90 186 202 255 472 237 319 593 22 Average Temperature 123 | 40 68 45 59 124 34 79 189 13 Received Heat Transfer 3145 | . 69 15 366 396 489 483 1165 162 Effects 41 | . . . . 3 . . 38 . Shutdowns 10 | . . . . . . . 10 . Energy Bleed 7 | . . . . 1 . . 6 . Interference 6 | . . . . . . . 6 . Matter Decay 3 | . . . . . . . 3 . Short Circuit 4 | . . . . 1 . . 3 . Damage (minor) 5 | . . . . 1 . . 4 . Damage (major) 6 | . . . . . . . 6 . Siege Activations . | . . . . . . . . . Martial Activations . | . . . . . . . . . Shielding Activations . | . . . . . . . . . Robots Disrupted . | . . . . . . . . . Combat Hostiles . | . . . . . . . . . Robots Corrupted 5 | . . . . . . 1 1 3 Combat Hostiles 4 | . . . . . . . 1 3 Parts Fried 5 | . . . . . . 2 1 2 Impact Corruptions 4 | . . . . . . . . 4 Robots Melted 1 | . . . . . . . 1 . Combat Hostiles 1 | . . . . . . . 1 . Parts Melted 10 | 2 . . . 3 . 1 4 . Heat Transferred 4823 | 296 407 333 2103 685 . 37 962 . Parts Sabotaged . | . . . . . . . . . Parts Stolen . | . . . . . . . . . Parts Stripped . | . . . . . . . . . Power Chain Reactions . | . . . . . . . . . Alert | -11 -10 -10 -10 -8 -8 -8 -7 -7 ------- Run | Yrd Mat Min Sub Mat Gar Mat Fac Sto Maximum Alert Level 4 | . . . . . 4 3 2 1 Low Security (%) 39 | 100 100 100 . 100 9 . . . Level 1 7 | . . . . . 7 . 19 100 Level 2 32 | . . . . . 18 69 80 . Level 3 10 | . . . . . 20 29 . . Level 4 10 | . . . . . 44 . . . Level 5 . | . . . . . . . . . High Security . | . . . . . . . . . Max Security . | . . . . . . . . . Peak Influence 1531 | 10 51 50 . 147 1531 814 576 365 Initial 746 | . . 12 . 2 57 746 357 250 Average 421 | 1 18 8 . 45 890 589 450 241 Influence Increases 4700 | 15 121 196 160 632 1514 879 958 225 Destroy 0b10 Robot/C 2260 | . 40 60 120 360 580 480 540 80 Destroy 0b10 Robot/NC 270 | 15 5 5 . 50 . 125 70 . Destroy Leader 498 | . 12 20 10 124 40 126 146 20 Allied During Kill 39 | . . 8 . 12 5 14 . . Successful Hack 157 | . 48 . . 38 42 15 14 . Disable Machine 165 | . . 15 . 30 15 45 30 30 Anti-Garrison Action 600 | . . . . . 600 . . . Destroy Structure 231 | . 1 88 . 18 67 29 23 5 Partial Spotted 15 | . . . . . . 15 . . Lose Combat Pursuer 465 | . 15 . 30 . 165 30 135 90 Influence Decreases 4335 | 15 90 227 155 548 72 1624 1194 410 Entered New Map 1568 | . . 19 . 3 32 785 429 300 Time Decay 2129 | 15 90 160 125 515 . 559 565 100 Lost Part 360 | . . . 30 10 20 90 200 10 Lost Ally 128 | . . 48 . 20 20 40 . . Purge Threat 150 | . . . . . . 150 . . Squads Dispatched 24 | . . 1 . 5 . 6 12 . Investigation 6 | . . 1 . 3 . 1 1 . Extermination 4 | . . . . . . . 4 . Reinforcement 4 | . . . . 1 . 3 . . Assault 2 | . . . . . . 1 1 . Garrison 8 | . . . . 1 . 1 6 . Intercept . | . . . . . . . . . Searches Triggered . | . . . . . . . . . Construction Impeded 1 | . . . . . . 1 . . Haulers Reinforced . | . . . . . . . . . Active Scanning Responses . | . . . . . . . . . Cargo Convoy Interrupts 1 | . . . . . . . 1 . Stealth | -11 -10 -10 -10 -8 -8 -8 -7 -7 --------- Run | Yrd Mat Min Sub Mat Gar Mat Fac Sto Distress Signals 9 | . . 1 . 1 . 3 2 2 Communications Jammed . | . . . . . . . . . Distress Signals . | . . . . . . . . . Times Spotted 207 | . 4 18 26 23 40 44 42 10 Peak Tracking Total 10 | . 2 7 6 5 8 5 6 10 Tactical Retreats 17 | . 1 . 1 . 7 2 4 2 Traps | -11 -10 -10 -10 -8 -8 -8 -7 -7 ------- Run | Yrd Mat Min Sub Mat Gar Mat Fac Sto Traps Triggered 9 | . . . 4 3 1 1 . . Indirectly . | . . . . . . . . . Trap Hack Attempts . | . . . . . . . . . Triggered . | . . . . . . . . . Disarmed . | . . . . . . . . . Reprogrammed . | . . . . . . . . . Reused . | . . . . . . . . . Traps Extracted . | . . . . . . . . . Installed . | . . . . . . . . . Triggered . | . . . . . . . . . Machines | -11 -10 -10 -10 -8 -8 -8 -7 -7 ---------- Run | Yrd Mat Min Sub Mat Gar Mat Fac Sto Machines Disabled 19 | . . 1 2 2 7 3 2 2 Max in Single Turn 2 | . . 1 1 1 2 1 1 1 Garrison Relay 4 | . . . . . 4 . . . Phase Generator 1 | . . . . . 1 . . . Machines Repaired 1 | . . . . . . 1 . . Machines Dismantled . | . . . . . . . . . Machines Sabotaged . | . . . . . . . . . Overloaded Fab Kills . | . . . . . . . . . Hacking | -11 -10 -10 -10 -8 -8 -8 -7 -7 --------- Run | Yrd Mat Min Sub Mat Gar Mat Fac Sto Machines Accessed 34 | . 4 2 2 13 3 4 5 1 Terminals 20 | . 4 1 . 9 3 2 . 1 Fabricators 2 | . . . . . . . 2 . Repair Stations 4 | . . . . 1 . 1 2 . Recycling Units . | . . . . . . . . . Scanalyzers 3 | . . . . 2 . 1 . . Garrison Access 2 | . . . . 1 . . 1 . Total Hacks 104 | . 11 2 5 47 7 23 7 2 Successful 61 | . 6 1 5 32 3 13 1 . Failed 42 | . 5 1 . 14 4 10 6 2 Catastrophic 8 | . . 1 . 2 . 2 3 . Database Lockouts 1 | . . . . 1 . . . . Manual 29 | . 5 1 . 17 2 4 . . Terminals 66 | . 11 1 . 30 7 15 . 2 Fabricators 3 | . . . . . . . 3 . Repair Stations 11 | . . . . 4 . 5 2 . Recycling Units . | . . . . . . . . . Scanalyzers 14 | . . . . 11 . 3 . . Garrison Access 4 | . . . . 2 . . 2 . Terminal Hacks 27 | . 5 1 5 11 2 3 . . Record 4 | . . . 4 . . . . . Part Schematic 2 | . 1 . . 1 . . . . Robot Analysis 2 | . 1 . . 1 . . . . Prototype ID Bank 5 | . 2 . . 3 . . . . Open Door 1 | . . 1 . . . . . . Unreport Threat 1 | . . . . . . 1 . . Locate Traps 3 | . . . . 2 . 1 . . Hauler Manifests 2 | . 1 . . . . 1 . . Zone Layout 4 | . . . . 4 . . . . Patrol Navigation 1 | . . . . . 1 . . . Security Stations 1 | . . . . . 1 . . . Proto ID Catalog 1 | . . . 1 . . . . . Fabricator Hacks 1 | . . . . . . . 1 . Build 1 | . . . . . . . 1 . Repair Station Hacks 6 | . . . . 2 . 4 . . Scan Component 3 | . . . . 1 . 2 . . Repair 3 | . . . . 1 . 2 . . Recycling Unit Hacks . | . . . . . . . . . Scanalyzer 13 | . . . . 10 . 3 . . Insert Component 6 | . . . . 4 . 2 . . Analyze 7 | . . . . 6 . 1 . . Garrison Access Hacks 1 | . . . . 1 . . . . Unlock Access 1 | . . . . 1 . . . . Unauthorized Hacks 13 | . 1 . . 8 1 3 . . Terminals 12 | . 1 . . 7 1 3 . . Track 1 | . 1 . . . . . . . Botnet 4 | . . . . 2 1 1 . . Skim 7 | . . . . 5 . 2 . . Fabricators . | . . . . . . . . . Repair Stations . | . . . . . . . . . Recycling Units . | . . . . . . . . . Scanalyzers . | . . . . . . . . . Garrison Access 1 | . . . . 1 . . . . Reprogram 1 | . . . . 1 . . . . Data Cores Recovered . | . . . . . . . . . Used . | . . . . . . . . . Hacking Detections 30 | . 4 1 . 12 3 4 5 1 Full Trace Events 4 | . . . . 1 1 1 1 . Feedback Events . | . . . . . . . . . Feedback Blocked . | . . . . . . . . . Robot Schematics Acquired . | . . . . . . . . . Robots Built . | . . . . . . . . . Authchips . | . . . . . . . . . Time . | . . . . . . . . . Total Robot Build Rating . | . . . . . . . . . Part Schematics Acquired 7 | . 1 . . 5 . 1 . . Parts Built 2 | . . . . . . . 2 . Authchips . | . . . . . . . . . Time 53 | . . . . . . . 53 . Total Part Build Rating 12 | . . . . . . . 12 . Parts Repaired 3 | . . . . 1 . 2 . . Time 120 | . . . . 44 . 76 . . Parts Recycled . | . . . . . . . . . Recycled Matter . | . . . . . . . . . Retrieved Matter . | . . . . . . . . . Retrieved Components . | . . . . . . . . . Parts Scanalyzed 5 | . . . . 4 . 1 . . Part Schematics Acquired 5 | . . . . 4 . 1 . . Parts Damaged . | . . . . . . . . . Bothacking | -11 -10 -10 -10 -8 -8 -8 -7 -7 ------------ Run | Yrd Mat Min Sub Mat Gar Mat Fac Sto Used RIF Installer . | . . . . . . . . . Robots Hacked 1 | . . . . 1 . . . . Non-combat . | . . . . . . . . . Combat 1 | . . . . 1 . . . . Robot Hacks Applied 1 | . . . . 1 . . . . parse_system 1 | . . . . 1 . . . . Relay Couplers Released 17 | . . . . . 17 . . . Machine Destruction 17 | . . . . . 17 . . . Fabnet Peak Effective % . | . . . . . . . . . Robots Rewired . | . . . . . . . . . Allies Hacked . | . . . . . . . . . Hacks Repelled . | . . . . . . . . . Allies | -11 -10 -10 -10 -8 -8 -8 -7 -7 -------- Run | Yrd Mat Min Sub Mat Gar Mat Fac Sto Total Allies 10 | . . 5 . 3 2 . . . Largest Group 5 | . . 5 2 3 2 2 . . Highest-Rated Group 85 | . . 85 24 48 62 62 . . Highest-Rated Ally 31 | . . 31 16 16 31 31 . . Initial Warlord ECA Mod 25 | . . . . . . 9 8 8 Total Orders . | . . . . . . . . . Ally Attacks 108 | . . 33 12 16 20 27 . . Total Damage 1255 | . . 252 157 219 220 407 . . Kills 14 | . . 5 . 1 3 5 . . Allies Corrupted . | . . . . . . . . . Allies Melted 1 | . . 1 . . . . . . Intel | -11 -10 -10 -10 -8 -8 -8 -7 -7 ------- Run | Yrd Mat Min Sub Mat Gar Mat Fac Sto Active Infowar (turns) 3733 | 21 222 355 853 1514 164 . 430 174 Optics 853 | . . . 853 . . . . . Sensors 2264 | . . . . 1514 164 . 412 174 Seismic 598 | 21 222 355 . . . . . . Jamming 18 | . . . . . . . 18 . Robot Analysis Total 2 | . 1 . . 1 . . . . Derelict Logs Recovered 3 | . . 2 1 . . . . . Drone Launches . | . . . . . . . . . Drone Recoveries . | . . . . . . . . . Exploration | -11 -10 -10 -10 -8 -8 -8 -7 -7 ------------- Run | Yrd Mat Min Sub Mat Gar Mat Fac Sto Turns Passed 12376 | 98 222 863 3341 2158 2143 1653 1695 203 Spaces Moved 6002 | 64 146 597 2005 1016 753 592 728 101 Core 1 | 1 . . . . . . . . Treads 2742 | . . 261 881 769 753 78 . . Legs . | . . . . . . . . . Wheels 2732 | 63 146 336 1124 247 . 514 302 . Hover 527 | . . . . . . . 426 101 Flight . | . . . . . . . . . Fastest Speed 50 | 50 90 90 110 119 245 140 54 54 Average Speed 159 | 89 90 122 144 173 245 187 138 54 Slowest Speed 312 | 90 90 160 240 245 245 312 220 54 Overloaded Moves . | . . . . . . . . . Propulsion Burnouts . | . . . . . . . . . Robots Hopped . | . . . . . . . . . Potential Cave-ins 2 | . . . 2 . . . . . Cave-ins Triggered . | . . . . . . . . . Exploration Rate (%) 53 | 5 31 98 94 89 90 39 23 13 Regions Visited 8 Branch Regions 3 Pre-discovered Areas 4 | . . 1 2 1 . . . . Known Exits Taken 2 | . . . . 1 . . 1 . Unknown Exits Taken 5 | 1 1 1 1 . . 1 . . Scrap Searched 4 | . . 1 3 . . . . . Spaces Dug 85 | . . 34 24 2 . 20 . 5 Terrain Destroyed 339 | . . 113 61 17 91 29 23 5 Melee 5 | . . . . . . . . 5 Projectile 45 | . . . 19 17 9 . . . AOE 289 | . . 113 42 . 82 29 23 . Terrain Rammed . | . . . . . . . . . Walls Destroyed . | . . . . . . . . . Machines Disabled . | . . . . . . . . . Actions | -11 -10 -10 -10 -8 -8 -8 -7 -7 --------- Run | Yrd Mat Min Sub Mat Gar Mat Fac Sto Total 7812 | 86 205 681 2278 1300 903 938 1210 211 Wait 747 | 1 42 32 100 125 46 145 177 79 Move 5994 | 63 145 596 2004 1015 752 591 727 101 Hop . | . . . . . . . . . Pick Up 107 | 6 2 4 21 32 4 10 28 . Fast Attach 67 | 7 . 3 12 9 1 21 11 3 Attach 43 | . . . 6 5 4 6 22 . Detach 9 | . . . 1 . 1 2 4 1 Swap 77 | 1 1 6 18 17 4 12 18 . Drop 128 | . . 10 21 35 6 20 35 1 Fire 610 | 8 15 30 91 61 83 129 186 7 Melee 20 | . . . . 1 . . . 19 Ram 2 | . . . . . . . 2 . Kick . | . . . . . . . . . Crush . | . . . . . . . . . Escape Stasis 2 | . . . . . 2 . . . Rewire . | . . . . . . . . . Trap . | . . . . . . . . . Miscellaneous 6 | . . . 4 . . 2 . . Route ------- -11/Scrapyard -10/Materials (discovered 2 exits: *Min / *Sub) -10/Mines (discovered 3 exits: [*Mat x2] / *Sub) -10/Subcaves (discovered 3 exits: *Mat x2 / [*Rec]) -8/Materials (discovered 4 exits: *Fac x3 / Gar) -8/Garrison (discovered 3 exits: *Mat x3) -8/Materials -7/Factory (discovered 3 exits: *Sto / Low x2) -7/Storage History --------- Turn | Location | Event 10 | -11/Scrapyard | Discovered new exit (range 16) 99 | -11/Scrapyard | Entered Materials 216 | -10/Materials | Discovered new exit (range 16) 306 | -10/Materials | Discovered new exit (range 11) 310 | -10/Materials | Build established: Mutant 321 | -10/Materials | Entered Mines 358 | -10/Mines | Received a Rocket Launcher from a helpful Derelict 359 | -10/Mines | Learned location of Recycling (-7) 412 | -10/Mines | Assembled infested the area 417 | -10/Mines | Assisted by a Guerilla fighting off Assembled 455 | -10/Mines | Discovered new exit (range 7) 592 | -10/Mines | Discovered new exit (range 5) 642 | -10/Mines | Assisted by bots powering up and referring to "LRC-V3" 666 | -10/Mines | Met a Derelict shopkeep closing up shop 1164 | -10/Mines | Discovered new exit (range 4) 1184 | -10/Mines | Entered Subcaves 1184 | -10/Subcaves | Accompanied by 2 allies 1185 | -10/Subcaves | Approached by a straggling Scientist 1186 | -10/Subcaves | Shifting Twisted Machinery released Sub. Beam Cannon 1254 | -10/Subcaves | Discovered new exit (range 5) 1425 | -10/Subcaves | Shifting Twisted Machinery released Mak. System Restoration Module 1466 | -10/Subcaves | Shifting Twisted Machinery released Sub. Machine Gun 1513 | -10/Subcaves | A swath of the cavern ceiling suddenly collapsed 1993 | -10/Subcaves | Disturbed a concealed Subdweller 2160 | -10/Subcaves | Shifting Twisted Machinery released Sub. Laser 2265 | -10/Subcaves | Shifting Twisted Machinery released Sub. Power Source 2379 | -10/Subcaves | Build established: Subdweller-Mutant 2507 | -10/Subcaves | Visited 4L-MR0's lab 2525 | -10/Subcaves | Found Powered Cannon 2641 | -10/Subcaves | A swath of the cavern ceiling suddenly collapsed 2810 | -10/Subcaves | Build established: Mutant 3050 | -10/Subcaves | Discovered new exit (range 9) 3053 | -10/Subcaves | Core integrity fell below 50% 3291 | -10/Subcaves | Learned Materials stockpile data 3560 | -10/Subcaves | Ambushed by Subdwellers from Twisted Machinery 3566 | -10/Subcaves | Core integrity fell below 20% 3877 | -10/Subcaves | Visited Clippyterm 3880 | -10/Subcaves | Learned location of Section 7 (-2) 3992 | -10/Subcaves | A Subdweller sparked back to life 3992 | -10/Subcaves | A Subdweller sparked back to life 4055 | -10/Subcaves | Found Gun Armor 4059 | -10/Subcaves | Attached Gun Armor, gained temporary slots: Weapon x2 4265 | -10/Subcaves | Discovered new exit (range 12) 4326 | -10/Subcaves | Learned location of Zion (-6) 4326 | -10/Subcaves | Met a Zionite searching for "candidates" 4369 | -10/Subcaves | Build established: Scavenger-Gunner 4525 | -10/Subcaves | Entered Materials 4525 | -8/Materials | Evolved 4 slots: Propulsion x2, Utility x2 4821 | -8/Materials | Build established: Subdweller-Tank 5107 | -8/Materials | Met 7R-MNS 5132 | -8/Materials | Destroyed 7 combat bots 5155 | -8/Materials | Discovered new exit (range 15) 5393 | -8/Materials | Learned 8 Factory zone layouts 5447 | -8/Materials | Build established: Scavenger-Skirmisher 5449 | -8/Materials | Learned Storage terminal intel 5497 | -8/Materials | Learned Storage stockpile data 5536 | -8/Materials | Learned 4 Factory zone layouts 5587 | -8/Materials | Learned Factory machine intel 5650 | -8/Materials | Discovered new exit (range 15) 5662 | -8/Materials | Learned Factory repair station intel 5721 | -8/Materials | Identified exit to Garrison 5756 | -8/Materials | Central database locked down 5919 | -8/Materials | Discovered new exit (range 15) 6331 | -8/Materials | Repaired Hrd. Heavy Armor Plating 6635 | -8/Materials | Garrison activated, responded to threat 6683 | -8/Materials | Entered Garrison 6683 | -8/Garrison | Accompanied by 2 allies 6716 | -8/Garrison | Phase Generator disabled 6863 | -8/Garrison | Triggered checkpoint 6935 | -8/Garrison | Destroyed 9 combat bots 7035 | -8/Garrison | Triggered checkpoint 7090 | -8/Garrison | Garrison Relay disabled 7152 | -8/Garrison | Build established: Scavenger-Tank 7282 | -8/Garrison | Discovered new exit (range 14) 7441 | -8/Garrison | Garrison Relay disabled 7683 | -8/Garrison | Triggered checkpoint 7781 | -8/Garrison | Learned Materials security intel 7801 | -8/Garrison | Garrison Relay disabled 7963 | -8/Garrison | Discovered new exit (range 15) 8177 | -8/Garrison | Triggered checkpoint 8263 | -8/Garrison | Garrison Relay disabled 8344 | -8/Garrison | Rescued a captive Derelict 8357 | -8/Garrison | Rescued a captive Derelict 8424 | -8/Garrison | Discovered new exit (range 10) 8537 | -8/Garrison | Triggered checkpoint 8657 | -8/Garrison | Build established: Scavenger-Mutant 8826 | -8/Garrison | Entered Materials 8826 | -8/Materials | Accompanied by 2 allies 8956 | -8/Materials | Repaired Arm. Treads 8995 | -8/Materials | Repaired Hardlight Generator 9199 | -8/Materials | Discovered new exit (range 16) 9559 | -8/Materials | Build established: Mutant 9626 | -8/Materials | First assault squad dispatched 9929 | -8/Materials | Core integrity fell below 50% 9970 | -8/Materials | Lost 7 parts (1p2n1u3w) 10254 | -8/Materials | Build established: Scavenger-Mutant 10278 | -8/Materials | Garrison activated, responded to threat 10479 | -8/Materials | Entered Factory 10479 | -7/Factory | Evolved 2 slots: Power x1, Utility x1 10480 | -7/Factory | Identified exit to Storage 10480 | -7/Factory | Identified exit to Lower Caves 10482 | -7/Factory | Loaded intel: 267 machine locations 10483 | -7/Factory | Loaded intel: 6 repair station locations 10565 | -7/Factory | Fabricated Cmb. Gravmag System (x2) 10698 | -7/Factory | Garrison activated, responded to threat 10775 | -7/Factory | Lost 3 parts (2u1w) 10779 | -7/Factory | Destroyed 8 combat bots 11327 | -7/Factory | System corruption reached 10% 11355 | -7/Factory | Core integrity fell below 50% 11383 | -7/Factory | Lost 6 parts (1p3n2u) 11698 | -7/Factory | Garrison activated, responded to threat 11775 | -7/Factory | Lost 3 parts (2p1w) 11918 | -7/Factory | Core integrity fell below 20% 11959 | -7/Factory | Cargo convoy interrupted 12079 | -7/Factory | First assault squad dispatched 12121 | -7/Factory | Build established: Mutant 12174 | -7/Factory | Entered Storage 12176 | -7/Storage | Loaded intel: 14 terminal locations 12377 | -7/Storage | Destroyed by G-47 Trooper with Particle Gun Last Messages --------------- 12363_ G-47 Trooper suffers critical hit (Smash). 12363_ Destroyed Imp. Heat Sink. 12363_ G-47 Trooper system corrupted by crushing effect. 12363_ G-47 Trooper knocked back. 12366_ Destroyed Lgt. Nuclear Core. 12366_ G-47 Trooper system corrupted by crushing effect. 12366_ Cmb. Gravmag System destroyed. 12367_ G-47 Trooper system terminally corrupted. 12371_ Destroyed Core Shielding. 12371_ L-41 Fighter system corrupted by crushing effect. 12372_ L-41 Fighter system terminally corrupted. 12372_ Imp. Melee Analysis Suite fried. 12373_ Acquired 66 matter. 12373_ Critical hit (Burn: +37). 12374_ G-47 Trooper suffers critical hit (Smash). 12374_ Destroyed Particle Gun. 12374_ G-47 Trooper system corrupted by crushing effect. 12375_ G-47 Trooper system terminally corrupted. 12375_ Imp. Heat Sink fried. 12376_ Acquired 10 matter. Map ----- +----------------------------------------------------+ | | | | | | | | | | | | | | | | | | | ?????????????????????????????????????????????????? | | ?????????????????????????????????????????/???????? | | ?????????????????????????????????????????????????? | | ?????????????????????????????????????????????????? | | ??????????????????????????????????????""?????????? | | ??????????????????????????????????????"T?????????? | | ??????????????????????????????????????""?????????? | | ????#####????????????????????????????????????????? | | ????# ^#????????????????????????????????????????? | | ????# #????????????????????????????????????????? | | ????# #????????????????????????T???????????????? | | ????# #???????????????????????""???????????????? | | ????# #???????????????????#????????????????????? | | ????# #??????????????????]#????????????????????? | | ????# #??????????????##""%#????????????????????? | | ????# #??????????????# *gg#????????????????????? | | ????# #?????????????##=@gg#?????#??????????????? | | ????# #???????????#######u#### #??????????????? | | ????# ###????##???# #??????????????? | | ????# # ???? #??# + ???????? | | ????# # """?? ####+##+## #### ######?????????? | | ????# # " """" # ! # #???????????????????? | | ????# # " [" # # #???????????????????? | | ????# + =[""]" # # #???????????"??=????" | | ????# # """" " # """" # #???????????"???????" | | ??#"" # """ # """"w + +???????????"???????T | | ??#"" # # """" # #???????????T???????" | | ??#"T # # """" # #???????????"???????" | | ??#"" ##+######" # #???????????"???????? | | ??#"" ???????## # #???????????"???????? | | ??### ????????#####+#### #???????????????????? | | ????# ?????????????????? #???????????????????? | | ????# ?????????????????? ????????????????????? | | ????# ?????????????????? ????T???????????????? | | ????# ?????????????????? ????????????????????? | | ????" ????????????????????????????????????????? | | ????" #????????????????????????????????????????? | | ????" ?????????????????????????????????????????? | | ????T????????????????????????????????????????????? | | ????"????????????????????????????????????????????? | | ????"????????????????????????????????????????????? | +----------------------------------------------------+ Best States ------------- Heat Dissipation 56 Energy Generation 27 Energy Capacity 480 Matter Stores 300 Matter Capacity 300 Sight Range 21 Robot Scan Range 15 Terrain Scan Density 10 Jamming Range 12 Armor Coverage 860 Weapon Cycling 15 Evasion (%) 54 Targeting Accuracy 8 Core Analysis 6 Recoil Reduction 4 Authchip Count 1 Item Schematics ----------------- Hcp. Storage Unit | -10/Materials | Hacked Enh. Autogun | -8/Materials | Scanalyzed Cmb. Airjet | -8/Materials | Scanalyzed Multitool | -8/Materials | Scanalyzed Imp. Utility Shielding | -8/Materials | Hacked Hrd. Heavy Armor Plating | -8/Materials | Scanalyzed Huge Storage Unit | -8/Materials | Scanalyzed Robot Schematics ------------------ None Fabricated ------------ Cmb. Gravmag System | x2 | -7/Factory | Preloaded Repaired ---------- Hrd. Heavy Armor Plating | 74% | -8/Materials Arm. Treads | 12% | -8/Materials Hardlight Generator | 23% | -8/Materials Alien Tech Used ----------------- None Achievements -------------- None Challenges ------------ None Game ------ Seed BraceSmartNetwork Manual? 0 Play Time 01:51:12 Cumulative 688.1 hours Start 2025.05.11 @ 17:32:50 End 2025.05.12 @ 20:54:26 Sessions 3 Manual Loads 0 Difficulty Rogue Special Mode None Game No. 273 Rogue 268 Adventurer 4 Explorer 1 Win Type - Total 10 Types 6/1/1/1/0/1/0/0/0/0 Lore% 93 Gallery% 87 Achievement% 87 Wizard Run 0 Options --------- Layout 0 ASCII 0 Keyboard 0 Movement Numpad Keybinds 0 Fullscreen 2 Font 18/CogNarrow Map View 76x50 Zoom Use 0% Tactical HUD 1 Map Filters NONE Filters NONE Steam 1 RUN: b59acd25-6ca5-48d3-87ca-5810c04d706a